fUST/lending_fUST_20250411
["ID","MTS","AMOUNT","RATE_DAILY","PERIOD"]
[357669969,1744302638776,-500.0,0.00016438,2]
[357669970,1744302638786,-500.0,0.00016438,2]
[357669971,1744302638795,-500.0,0.00016438,2]
[357669972,1744302638805,-500.0,0.00016438,2]
[357669973,1744302638815,-500.0,0.00016438,2]
[357669974,1744302638825,-500.0,0.00016438,2]
[357669975,1744302638835,-500.0,0.00016438,2]
[357669976,1744302638849,-500.0,0.00016438,2]
[357669977,1744302638864,-500.0,0.00016438,2]
[357669978,1744302638874,-500.0,0.00016438,2]
[357669979,1744302638884,-502.47358273,0.00016438,2]
[357669980,1744302638894,-500.0,0.00016438,2]
[357669981,1744302638904,-500.0,0.00016438,2]
[357669982,1744302638913,-500.0,0.00016438,2]
[357669983,1744302638923,-500.0,0.00016438,2]
[357669984,1744302638933,-500.0,0.00016438,2]
[357669985,1744302638942,-500.0,0.00016438,2]
[357669986,1744302638952,-567.75266961,0.00016438,2]
[357669987,1744302638962,-500.0,0.00016438,2]
[357669988,1744302638972,-509.54154795,0.00016438,2]
[357669989,1744302638982,-500.0,0.00016438,2]
[357669990,1744302638992,-500.0,0.00016438,2]
[357669991,1744302639003,-350.7947237,0.00016438,2]
[357669992,1744302639021,-345.1052763,0.00016438,2]
[357669993,1744302639033,-636.16646411,0.00016438,2]
[357669994,1744302639043,-174.67825905,0.00016438,2]
[357669995,1744302639225,-151.0,0.00016428,2]
[357669996,1744302639235,-379.67,0.00016438,2]
[357669997,1744302639283,-456.16174095,0.00016438,2]
[357669998,1744302639294,-500.0,0.00016438,2]
[357669999,1744302639304,-500.0,0.00016438,2]
[357670000,1744302639315,-610.29,0.00016438,2]
[357670001,1744302639326,-500.0,0.00016438,2]
[357670002,1744302639336,-877.23,0.00016438,2]
[357670003,1744302639348,-505.57,0.00016438,2]
[357670004,1744302639358,-500.0,0.00016438,2]
[357670005,1744302639370,-511.56624358,0.00016438,2]
[357670006,1744302639382,-500.0,0.00016438,2]
[357670007,1744302639393,-151.0,0.00016438,2]
[357670008,1744302639404,-540.75,0.00016438,2]
[357670009,1744302639416,-151.0,0.00016438,2]
[357670010,1744302639426,-151.0,0.00016438,2]
[357670011,1744302639436,-500.0,0.00016438,2]
[357670019,1744302639607,-611.65,0.00016438,2]
[357670020,1744302639620,-151.0,0.00016438,2]
[357670021,1744302639633,-151.0,0.00016438,2]
[357670022,1744302639643,-12.39921135,0.00016438,2]
[357670153,1744302646123,-151.0,0.00016428,2]
[357670156,1744302646136,-151.0,0.00016428,2]
[357670159,1744302646146,-151.0,0.00016428,2]
[357670208,1744302646427,-151.0,0.00016428,2]
[357670212,1744302646463,-151.0,0.00016428,2]
[357670214,1744302646472,-151.0,0.00016428,2]
[357670216,1744302646482,-151.0,0.00016428,2]
[357670218,1744302646492,-302.0,0.00016428,2]
[357670220,1744302646503,-138.60078865,0.00016438,2]
[357670222,1744302646512,-253.211848,0.00016438,2]
[357670224,1744302646523,-151.0,0.00016438,2]
[357670226,1744302646533,-796.75,0.00016438,2]
[357670228,1744302646543,-585.28,0.00016438,2]
[357670230,1744302646553,-500.0,0.00016438,2]
[357670232,1744302646563,-329.27168621,0.00016438,2]
[357670234,1744302646575,-500.0,0.00016438,2]
[357670236,1744302646584,-1475.58,0.00016438,2]
[357670238,1744302646595,-500.0,0.00016438,2]
[357670239,1744302646606,-1618.47,0.00016438,2]
[357670240,1744302646616,-500.0,0.00016438,2]
[357670241,1744302646628,-500.0,0.00016438,2]
[357670242,1744302646639,-500.0,0.00016438,2]
[357670243,1744302646649,-500.0,0.00016438,2]
[357670244,1744302646660,-500.0,0.00016438,2]
[357670245,1744302646670,-500.45956698,0.00016438,2]
[357670246,1744302646680,-500.0,0.00016438,2]
[357670247,1744302646690,-794.39,0.00016438,2]
[357670248,1744302646699,-523.34,0.00016438,2]
[357670249,1744302646710,-93.02311322,0.00016438,2]
[357670250,1744302646723,-406.97688678,0.00016438,2]
[357670251,1744302646733,-698.89,0.00016438,2]
[357670252,1744302646743,-500.8935755,0.00016438,2]
[357670253,1744302646754,-500.0,0.00016438,2]
[357670254,1744302646764,-1000.0,0.00016438,2]
[357670255,1744302646775,-500.0,0.00016438,2]
[357670256,1744302646785,-554.714629,0.00016438,2]
[357670257,1744302646798,-51.525371,0.00016438,2]
[357670258,1744302646810,-500.0,0.00016438,2]
[357670259,1744302646821,-500.0,0.00016438,2]
[357670260,1744302646831,-500.0,0.00016438,2]
[357670261,1744302646841,-500.0,0.00016438,2]
[357670262,1744302646852,-500.0,0.00016438,2]
[357670263,1744302646862,-500.0,0.00016438,2]
[357670264,1744302646871,-500.0,0.00016438,2]
[357670265,1744302646883,-500.0,0.00016438,2]
[357670266,1744302646892,-691.39836871,0.00016438,2]
[357670267,1744302646928,-617.68163129,0.00016438,2]
[357670268,1744302646939,-500.0,0.00016438,2]
[357670269,1744302646950,-500.0,0.00016438,2]
[357670270,1744302646961,-500.0,0.00016438,2]
[357670271,1744302646971,-600.92,0.00016438,2]
[357670272,1744302646981,-500.0,0.00016438,2]
[357670273,1744302646992,-375.09836871,0.00016438,2]
[357670274,1744302647005,-124.90163129,0.00016438,2]
[357670275,1744302647015,-175.09836871,0.00016438,2]
[357670276,1744302657883,876.62,0.00010959,2]
[357670277,1744302668448,730.52,0.00010959,2]
[357670278,1744302678965,608.76,0.00010959,2]
[357670279,1744302689541,507.3,0.00010959,2]
[357670280,1744302700128,422.75,0.00010959,2]
[357670281,1744302710637,352.3,0.00010959,2]
[357670282,1744302721188,293.58,0.00010959,2]
[357670283,1744302731746,244.65,0.00010959,2]
[357670284,1744302742501,203.87,0.00010959,2]
[357670285,1744302748516,250.0,0.00014921,2]
[357670286,1744302753154,169.9,0.00010959,2]
[357670287,1744302763949,849.5,0.00010959,2]
[357670290,1744302892076,250.0,0.0001492,2]
[357670291,1744303035770,250.0,0.00014918,2]
[357670292,1744303179411,250.0,0.00014917,2]
[357670293,1744303301576,250.0,0.00014917,2]
[357670294,1744303445537,250.0,0.00014915,2]
[357670296,1744303588979,250.0,0.00014914,2]
[357670310,1744303732932,250.0,0.00014912,2]
[357670328,1744303758810,1183.41412252,0.00015,2]
[357670334,1744303785818,344.88699438,0.00016,120]
[357670349,1744303832038,-300.0,0.00015011,2]
[357670350,1744303832049,-321.5118608,0.00015139,2]
[357670351,1744303832060,-1779.3636812,0.00015205,2]
[357670352,1744303832071,-402.470673,0.00015294,2]
[357670353,1744303832083,-2279.5780727,0.00015405,2]
[357670354,1744303832095,-500.0,0.00015409,2]
[357670355,1744303832106,-200.46094476,0.00015409,2]
[357670357,1744303832117,-500.0,0.00015409,2]
[357670359,1744303832131,-248.6497188,0.0001541,2]
[357670360,1744303832144,-721.95872567,0.00016338,2]
[357670361,1744303832154,-733.92589748,0.00016338,2]
[357670362,1744303832165,-419.64641374,0.0001642,2]
[357670363,1744303832176,-837.80299543,0.0001642,2]
[357670364,1744303832187,-160.0,0.00016421,2]
[357670365,1744303832198,-152.0,0.00016423,2]
[357670366,1744303832209,-200.0,0.00016428,2]
[357670367,1744303832220,-420.0,0.00016428,2]
[357670368,1744303832230,-151.0,0.00016428,2]
[357670369,1744303832240,-500.0,0.00016438,2]
[357670370,1744303832250,-500.0,0.00016438,2]
[357670371,1744303832260,-537.89574128,0.00016438,2]
[357670372,1744303832270,-500.0,0.00016438,2]
[357670373,1744303832280,-535.76523148,0.00016438,2]
[357670374,1744303832290,-500.0,0.00016438,2]
[357670375,1744303832300,-900.72,0.00016438,2]
[357670376,1744303832310,-500.0,0.00016438,2]
[357670377,1744303832320,-500.0,0.00016438,2]
[357670378,1744303832330,-500.0,0.00016438,2]
[357670379,1744303832340,-500.0,0.00016438,2]
[357670380,1744303832350,-500.0,0.00016438,2]
[357670381,1744303832360,-575.88,0.00016438,2]
[357670382,1744303832369,-500.0,0.00016438,2]
[357670383,1744303832382,-500.0,0.00016438,2]
[357670384,1744303832392,-813.87,0.00016438,2]
[357670385,1744303832405,-501.68,0.00016438,2]
[357670386,1744303832415,-500.0,0.00016438,2]
[357670387,1744303832424,-500.0,0.00016438,2]
[357670388,1744303832434,-686.84,0.00016438,2]
[357670389,1744303832445,-500.0,0.00016438,2]
[357670390,1744303832455,-500.0,0.00016438,2]
[357670391,1744303832465,-563.38408216,0.00016438,2]
[357670392,1744303832475,-500.0,0.00016438,2]
[357670393,1744303832486,-500.0,0.00016438,2]
[357670394,1744303832497,-500.0,0.00016438,2]
[357670395,1744303832507,-640.6,0.00016438,2]
[357670396,1744303832517,-500.0,0.00016438,2]
[357670397,1744303832527,-625.52,0.00016438,2]
[357670398,1744303832537,-500.0,0.00016438,2]
[357670399,1744303832548,-500.0,0.00016438,2]
[357670400,1744303832558,-500.0,0.00016438,2]
[357670401,1744303832568,-1017.59,0.00016438,2]
[357670402,1744303832578,-500.0,0.00016438,2]
[357670403,1744303832588,-189.8510656,0.00016438,2]
[357670404,1744303832598,-500.0,0.00016438,2]
[357670405,1744303832608,-500.0,0.00016438,2]
[357670406,1744303832617,-754.83,0.00016438,2]
[357670407,1744303832630,-500.0,0.00016438,2]
[357670408,1744303832640,-500.0,0.00016438,2]
[357670409,1744303832650,-500.0,0.00016438,2]
[357670410,1744303832660,-500.0,0.00016438,2]
[357670411,1744303832670,-500.0,0.00016438,2]
[357670412,1744303832679,-951.35,0.00016438,2]
[357670413,1744303832689,-133.14578335,0.00016438,2]
[357670433,1744303838215,-259.99844794,0.00015011,2]
[357670434,1744303838227,-500.0,0.00015011,2]
[357670435,1744303838236,-191.01110985,0.00015011,2]
[357670562,1744303846318,-308.98889015,0.00015011,2]
[357670565,1744303846329,-500.0,0.00015011,2]
[357670567,1744303846339,-500.0,0.00015011,2]
[357670569,1744303846349,-500.0,0.00015011,2]
[357670571,1744303846359,-500.0,0.00015011,2]
[357670573,1744303846368,-500.0,0.00015011,2]
[357670575,1744303846378,-500.0,0.00015011,2]
[357670577,1744303846388,-500.0,0.00015011,2]
[357670579,1744303846399,-193.1652722,0.00015011,2]
[357670581,1744303846414,-500.0,0.00015011,2]
[357670583,1744303846424,-500.0,0.00015011,2]
[357670585,1744303846434,-500.0,0.00015011,2]
[357670587,1744303846444,-500.0,0.00015011,2]
[357670589,1744303846455,-178.3084653,0.00015011,2]
[357670592,1744303846465,-500.0,0.00015011,2]
[357670594,1744303846475,-156.85951116,0.00015409,2]
[357670596,1744303846486,-12536.72526453,0.00016419,2]
[357670598,1744303846496,-200.0,0.00016428,2]
[357670600,1744303846506,-366.85421665,0.00016438,2]
[357670602,1744303846516,-500.0,0.00016438,2]
[357670604,1744303846526,-500.0,0.00016438,2]
[357670606,1744303846536,-500.0,0.00016438,2]
[357670608,1744303846546,-500.0,0.00016438,2]
[357670610,1744303846556,-500.0,0.00016438,2]
[357670612,1744303846566,-342.79761422,0.00016438,2]
[357670614,1744303846576,-661.92,0.00016438,2]
[357670616,1744303846586,-731.5,0.00016438,2]
[357670618,1744303846596,-500.0,0.00016438,2]
[357670620,1744303846605,-500.0,0.00016438,2]
[357670622,1744303846615,-500.0,0.00016438,2]
[357670624,1744303846625,-500.0,0.00016438,2]
[357670626,1744303846634,-673.6,0.00016438,2]
[357670628,1744303846646,-965.66,0.00016438,2]
[357670630,1744303846656,-500.0,0.00016438,2]
[357670633,1744303846666,-500.0,0.00016438,2]
[357670635,1744303846676,-640.54,0.00016438,2]
[357670637,1744303846685,-500.0,0.00016438,2]
[357670639,1744303846695,-269.65570822,0.00016438,2]
[357670701,1744303854788,250.0,0.00014912,2]
[357670714,1744303947742,-171.19814605,0.00015011,2]
[357670716,1744304063162,-188.12947469,0.0001501,2]
[357670717,1744304063188,-61.87052531,0.0001501,2]
[357670718,1744304083095,-151.0,0.00015009,2]
[357670719,1744304105003,-250.0,0.00015008,2]
[357670720,1744304167615,-273.95233523,0.00015008,2]
[357670721,1744304318966,-150.23979297,0.00015007,2]
[357670722,1744304437609,-207.72701053,0.00015006,2]
[357670723,1744304468345,614.21541697,0.00014906,2]
[357670725,1744304557590,-181.10157079,0.00015005,2]
[357670726,1744304708589,-164.9835011,0.00015004,2]
[357670728,1744304795139,-300.0,0.00015003,2]
[357670729,1744304802795,-179.0240392,0.00015003,2]
[357670744,1744304921262,-158.5583837,0.00015002,2]
[357670754,1744304986162,161.0,0.00017397,10]
[357670764,1744305032306,-341.4416163,0.00015002,2]
[357670765,1744305032316,-649.97857686,0.00015002,2]
[357670766,1744305032326,-158.5583837,0.00015002,2]
[357670767,1744305032336,-965.0,0.00015003,2]
[357670768,1744305032346,-250.0,0.00015309,2]
[357670769,1744305032356,-201.235337,0.00015433,2]
[357670770,1744305032366,-164.9835011,0.00016338,2]
[357670771,1744305032376,-2011.70075055,0.000164,2]
[357670772,1744305032387,-160.0,0.00016408,2]
[357670773,1744305032397,-160.0,0.00016408,2]
[357670774,1744305032407,-300.0,0.00016426,2]
[357670776,1744305032417,-300.0,0.00016426,2]
[357670779,1744305032427,-160.0,0.00016427,2]
[357670781,1744305032436,-837.80299543,0.00016427,2]
[357670783,1744305032446,-160.0,0.00016427,2]
[357670785,1744305032456,-419.64641374,0.00016427,2]
[357670805,1744305032627,-12536.72526453,0.00016427,2]
[357670808,1744305032652,-200.0,0.00016428,2]
[357670810,1744305032662,-151.0,0.00016428,2]
[357670812,1744305032672,-171.19814605,0.00016428,2]
[357670814,1744305032681,-504.63015417,0.00016438,2]
[357670816,1744305032691,-500.0,0.00016438,2]
[357670818,1744305032700,-500.0,0.00016438,2]
[357670820,1744305032710,-500.0,0.00016438,2]
[357670822,1744305032719,-500.0,0.00016438,2]
[357670824,1744305032728,-500.0,0.00016438,2]
[357670825,1744305032738,-500.0,0.00016438,2]
[357670826,1744305032747,-500.0,0.00016438,2]
[357670827,1744305032760,-210.049816,0.00016438,2]
[357670828,1744305032770,-500.0,0.00016438,2]
[357670829,1744305032779,-500.0,0.00016438,2]
[357670830,1744305032790,-500.0,0.00016438,2]
[357670831,1744305032801,-500.0,0.00016438,2]
[357670832,1744305032811,-500.0,0.00016438,2]
[357670833,1744305032822,-500.0,0.00016438,2]
[357670834,1744305032832,-1243.99,0.00016438,2]
[357670835,1744305032842,-500.0,0.00016438,2]
[357670836,1744305032853,-517.19,0.00016438,2]
[357670837,1744305032863,-500.0,0.00016438,2]
[357670838,1744305032873,-529.49,0.00016438,2]
[357670839,1744305032883,-500.0,0.00016438,2]
[357670840,1744305032892,-569.59710174,0.00016438,2]
[357670841,1744305032902,-500.0,0.00016438,2]
[357670842,1744305032912,-500.0,0.00016438,2]
[357670843,1744305032922,-700.29,0.00016438,2]
[357670844,1744305032932,-605.89017006,0.00016438,2]
[357670845,1744305032942,-151.0,0.00016438,2]
[357670846,1744305032952,-151.0,0.00016438,2]
[357670847,1744305032961,-151.0,0.00016438,2]
[357670848,1744305032971,-240.64142,0.00016438,2]
[357670849,1744305032981,-500.0,0.00016438,2]
[357670850,1744305032991,-500.0,0.00016438,2]
[357670851,1744305033000,-500.0,0.00016438,2]
[357670852,1744305033010,-500.0,0.00016438,2]
[357670853,1744305033020,-500.0,0.00016438,2]
[357670854,1744305033030,-500.0,0.00016438,2]
[357670855,1744305033041,-500.0,0.00016438,2]
[357670856,1744305033051,-500.0,0.00016438,2]
[357670857,1744305033061,-151.0,0.00016438,2]
[357670858,1744305033072,-151.0,0.00016438,2]
[357670859,1744305033082,-151.0,0.00016438,2]
[357670860,1744305033093,-151.0,0.00016438,2]
[357670861,1744305033103,-151.0,0.00016438,2]
[357670862,1744305033113,-151.0,0.00016438,2]
[357670863,1744305033124,-500.0,0.00016438,2]
[357670864,1744305033134,-151.0,0.00016438,2]
[357670865,1744305033145,-500.0,0.00016438,2]
[357670866,1744305033155,-151.0,0.00016438,2]
[357670867,1744305033166,-151.0,0.00016438,2]
[357670868,1744305033177,-151.0,0.00016438,2]
[357670869,1744305033188,-151.0,0.00016438,2]
[357670870,1744305033198,-500.0,0.00016438,2]
[357670871,1744305033208,-151.0,0.00016438,2]
[357670872,1744305033219,-151.0,0.00016438,2]
[357670873,1744305033229,-151.0,0.00016438,2]
[357670874,1744305033240,-151.0,0.00016438,2]
[357670875,1744305033251,-500.0,0.00016438,2]
[357670876,1744305033263,-151.0,0.00016438,2]
[357670877,1744305033274,-210.823207,0.00016438,2]
[357670878,1744305033284,-500.0,0.00016438,2]
[357670879,1744305033294,-500.0,0.00016438,2]
[357670880,1744305033305,-500.0,0.00016438,2]
[357670881,1744305033315,-500.0,0.00016438,2]
[357670882,1744305033325,-746.35,0.00016438,2]
[357670883,1744305033336,-500.0,0.00016438,2]
[357670884,1744305033346,-500.0,0.00016438,2]
[357670885,1744305033357,-200.56087868,0.00016438,2]
[357670886,1744305033367,-500.0,0.00016438,2]
[357670887,1744305033377,-500.0,0.00016438,2]
[357670888,1744305033388,-500.0,0.00016438,2]
[357670889,1744305033399,-755.3,0.00016438,2]
[357670890,1744305033409,-500.0,0.00016438,2]
[357670891,1744305033419,-500.0,0.00016438,2]
[357670892,1744305033430,-500.0,0.00016438,2]
[357670893,1744305033440,-500.0,0.00016438,2]
[357670894,1744305033450,-500.0,0.00016438,2]
[357670895,1744305033460,-500.0,0.00016438,2]
[357670896,1744305033470,-1134.35,0.00016438,2]
[357670897,1744305033481,-151.0,0.00016438,2]
[357670898,1744305033491,-151.0,0.00016438,2]
[357670899,1744305033501,-219.161348,0.00016438,2]
[357670900,1744305033513,-500.0,0.00016438,2]
[357670901,1744305033523,-500.0,0.00016438,2]
[357670902,1744305033533,-151.0,0.00016438,2]
[357670903,1744305033543,-151.0,0.00016438,2]
[357670904,1744305033553,-151.0,0.00016438,2]
[357670905,1744305033562,-25.62169837,0.00016438,2]
[357670906,1744305033580,-633.62830163,0.00016438,2]
[357670907,1744305033591,-151.0,0.00016438,2]
[357670908,1744305033601,-151.0,0.00016438,2]
[357670909,1744305033611,-500.0,0.00016438,2]
[357670910,1744305033621,-1001.73,0.00016438,2]
[357670911,1744305033631,-151.0,0.00016438,2]
[357670912,1744305033641,-151.0,0.00016438,2]
[357670913,1744305033651,-153.155832,0.00016438,2]
[357670914,1744305033661,-500.0,0.00016438,2]
[357670915,1744305033671,-151.841669,0.00016438,2]
[357670916,1744305033681,-500.0,0.00016438,2]
[357670917,1744305033691,-456.83524179,0.00016438,2]
[357670918,1744305033711,-43.16475821,0.00016438,2]
[357670919,1744305033722,-500.0,0.00016438,2]
[357670920,1744305033732,-500.0,0.00016438,2]
[357670921,1744305033742,-500.0,0.00016438,2]
[357670922,1744305033752,-420.3519627,0.00016438,2]
[357670923,1744305033767,-1062.1980373,0.00016438,2]
[357670924,1744305033777,-500.0,0.00016438,2]
[357670925,1744305033788,-1165.74,0.00016438,2]
[357670926,1744305033799,-500.0,0.00016438,2]
[357670927,1744305033816,-151.0,0.00016438,2]
[357670928,1744305033827,-500.0,0.00016438,2]
[357670929,1744305033838,-500.0,0.00016438,2]
[357670930,1744305033849,-151.0,0.00016438,2]
[357670931,1744305033859,-151.259891,0.00016438,2]
[357670932,1744305033870,-500.0,0.00016438,2]
[357670933,1744305033882,-500.0,0.00016438,2]
[357670934,1744305033893,-230.84106685,0.00016438,2]
[357670935,1744305033902,-500.0,0.00016438,2]
[357670936,1744305033912,-500.0,0.00016438,2]
[357670937,1744305033922,-500.0,0.00016438,2]
[357670938,1744305033932,-500.0,0.00016438,2]
[357670939,1744305033942,-500.0,0.00016438,2]
[357670940,1744305033952,-500.0,0.00016438,2]
[357670941,1744305033962,-500.0,0.00016438,2]
[357670942,1744305033972,-500.0,0.00016438,2]
[357670943,1744305033982,-2579.01,0.00016438,2]
[357670944,1744305033992,-500.0,0.00016438,2]
[357670945,1744305034001,-500.0,0.00016438,2]
[357670946,1744305034012,-500.0,0.00016438,2]
[357670947,1744305034022,-500.0,0.00016438,2]
[357670948,1744305034032,-500.0,0.00016438,2]
[357670949,1744305034042,-500.0,0.00016438,2]
[357670950,1744305034052,-500.0,0.00016438,2]
[357670951,1744305034063,-500.0,0.00016438,2]
[357670952,1744305034074,-296.704875,0.00016438,2]
[357670953,1744305034085,-500.0,0.00016438,2]
[357670954,1744305034095,-162.31931178,0.00016438,2]
[357670955,1744305034104,-1283.24,0.00016438,2]
[357670956,1744305034114,-551.32,0.00016438,2]
[357670957,1744305034124,-643.08,0.00016438,2]
[357670958,1744305034134,-953.68,0.00016438,2]
[357670959,1744305034144,-599.43,0.00016438,2]
[357670960,1744305034154,-500.0,0.00016438,2]
[357670961,1744305034164,-832.31,0.00016438,2]
[357670962,1744305034174,-784.53,0.00016438,2]
[357670963,1744305034184,-500.0,0.00016438,2]
[357670964,1744305034195,-598.17168151,0.00016438,2]
[357670965,1744305034205,-500.0,0.00016438,2]
[357670966,1744305034215,-500.0,0.00016438,2]
[357670967,1744305034225,-1603.76,0.00016438,2]
[357670968,1744305034235,-500.0,0.00016438,2]
[357670969,1744305034244,-518.47415733,0.00016438,2]
[357670970,1744305034254,-540.7578611,0.00016438,2]
[357670971,1744305034267,-500.0,0.00016438,2]
[357670972,1744305034277,-500.0,0.00016438,2]
[357670973,1744305034287,-500.0,0.00016438,2]
[357670974,1744305034297,-500.0,0.00016438,2]
[357670975,1744305034307,-500.0,0.00016438,2]
[357670976,1744305034316,-720.55,0.00016438,2]
[357670977,1744305034326,-653.84,0.00016438,2]
[357670978,1744305034335,-500.0,0.00016438,2]
[357670979,1744305034345,-500.0,0.00016438,2]
[357670980,1744305034354,-1351.53,0.00016438,2]
[357670981,1744305034364,-500.0,0.00016438,2]
[357670982,1744305034375,-629.98321317,0.00016438,2]
[357670983,1744305034385,-155.942086,0.00016438,2]
[357670984,1744305034396,-500.0,0.00016438,2]
[357670985,1744305034407,-500.0,0.00016438,2]
[357670986,1744305034419,-508.2268594,0.00016438,2]
[357670987,1744305034430,-559.47,0.00016438,2]
[357670988,1744305034440,-500.0,0.00016438,2]
[357670989,1744305034451,-906.54,0.00016438,2]
[357670990,1744305034461,-504.46158923,0.00016438,2]
[357670991,1744305034471,-500.0,0.00016438,2]
[357670992,1744305034482,-633.17,0.00016438,2]
[357670993,1744305034492,-500.0,0.00016438,2]
[357670994,1744305034503,-500.0,0.00016438,2]
[357670995,1744305034516,-500.02,0.00016438,2]
[357670996,1744305034527,-500.0,0.00016438,2]
[357670997,1744305034537,-170.75019804,0.00016438,2]
[357670998,1744305034548,-1035.57,0.00016438,2]
[357670999,1744305034558,-500.0,0.00016438,2]
[357671000,1744305034568,-1212.76,0.00016438,2]
[357671001,1744305034579,-500.0,0.00016438,2]
[357671002,1744305034588,-568.32,0.00016438,2]
[357671003,1744305034598,-657.57,0.00016438,2]
[357671004,1744305034608,-500.0,0.00016438,2]
[357671005,1744305034618,-500.0,0.00016438,2]
[357671006,1744305034627,-500.0,0.00016438,2]
[357671007,1744305034637,-500.0,0.00016438,2]
[357671008,1744305034647,-2359.81,0.00016438,2]
[357671009,1744305034676,-500.0,0.00016438,2]
[357671010,1744305034687,-500.0,0.00016438,2]
[357671011,1744305034698,-500.0,0.00016438,2]
[357671012,1744305034709,-500.0,0.00016438,2]
[357671013,1744305034721,-500.0,0.00016438,2]
[357671014,1744305034732,-2032.47,0.00016438,2]
[357671015,1744305034742,-500.0,0.00016438,2]
[357671016,1744305034753,-578.16400942,0.00016438,2]
[357671017,1744305034766,-500.0,0.00016438,2]
[357671018,1744305034777,-500.0,0.00016438,2]
[357671019,1744305034789,-500.0,0.00016438,2]
[357671020,1744305034799,-500.0,0.00016438,2]
[357671021,1744305034959,-500.0,0.00016438,2]
[357671022,1744305034970,-500.0,0.00016438,2]
[357671023,1744305034982,-500.0,0.00016438,2]
[357671024,1744305034992,-500.0,0.00016438,2]
[357671025,1744305035002,-320.56516244,0.00016438,2]
[357671026,1744305035015,-151.0,0.00016438,2]
[357671027,1744305035025,-151.0,0.00016438,2]
[357671028,1744305035035,-1259.67,0.00016438,2]
[357671029,1744305035045,-151.0,0.00016438,2]
[357671030,1744305035055,-500.0,0.00016438,2]
[357671031,1744305035065,-151.0,0.00016438,2]
[357671032,1744305035075,-151.0,0.00016438,2]
[357671033,1744305035086,-500.0,0.00016438,2]
[357671034,1744305035096,-151.0,0.00016438,2]
[357671035,1744305035107,-151.0,0.00016438,2]
[357671036,1744305035116,-500.0,0.00016438,2]
[357671037,1744305035126,-1519.24,0.00016438,2]
[357671038,1744305035136,-151.0,0.00016438,2]
[357671039,1744305035146,-151.0,0.00016438,2]
[357671040,1744305035156,-151.0,0.00016438,2]
[357671041,1744305035166,-151.0,0.00016438,2]
[357671042,1744305035176,-151.0,0.00016438,2]
[357671043,1744305035186,-233.315556,0.00016438,2]
[357671044,1744305035196,-2110.72,0.00016438,2]
[357671045,1744305035206,-500.0,0.00016438,2]
[357671046,1744305035215,-500.0,0.00016438,2]
[357671047,1744305035225,-500.0,0.00016438,2]
[357671048,1744305035235,-500.0,0.00016438,2]
[357671049,1744305035245,-500.0,0.00016438,2]
[357671050,1744305035255,-1330.74,0.00016438,2]
[357671051,1744305035265,-573.25069869,0.00016438,2]
[357671052,1744305035275,-500.0,0.00016438,2]
[357671053,1744305035285,-151.0,0.00016438,2]
[357671054,1744305035294,-500.0,0.00016438,2]
[357671055,1744305035304,-500.0,0.00016438,2]